Cogmind - Beta 16 @@@ ROGUE MODE // 2025.10.29 @ 21:08:58 Player: ktur Result: Destroyed by H-88 Terminator with KE Penetrator Performance ------------- Evolutions (8) 4000 Regions Visited (21) 4200 Robots Destroyed (158) 790 Value Destroyed (5961) 5961 Prototype IDs (48) 960 Alien Tech Used (0) 0 Bonus (10178) 10178 TOTAL SCORE: 26089 Bonus ------- High Alert Combat Kills 955 Follower Combat Kills 2968 Network Hubs Disabled 400 Delivered SUBCON Basin 2000 Registered with UFD 300 Met Optimus in HQ 500 Met Imprinter 300 Built Enhanced Grunts 300 Met R17 at Cetus 500 Met R17 at Research 2000 Friendly Fire -45 Cogmind --------- Core Integrity 0/1450 Matter 285/300 Energy 82/100 System Corruption 0% Temperature Cool (0) Movement Core (50) Location -2/Research Parts ------- > --- POWER (2) -------- (None) > --- PROPULSION (8) --- Biometal Medium Treads > --- UTILITY (11) ----- Advanced Signal Interpreter Improved Weapon Shielding > --- WEAPON (2) ------- (None) > --- INVENTORY (5) ---- Nanoactuators Nanoactuators Null Cannon Hellfire Missile Launcher Companion Sword Peak State ------------ > --- POWER ------------ Light Antimatter Reactor > --- PROPULSION ------- Xenon Bombardment Thruster Xenon Bombardment Thruster Xenon Bombardment Thruster Impulse Thruster Field Propulsion Array > --- UTILITY ---------- Advanced Sensor Array Advanced Signal Interpreter Improved Melee Analysis Suite Improved Armor Integrity Analyzer Nanoactuators Nanoactuators Advanced Transmission Jammer Improved Utility Shielding Improved Weapon Shielding Improved Hacking Suite Improved Hacking Suite > --- WEAPON ----------- Null Cannon Companion Sword > --- INVENTORY -------- Improved Weapon Shielding AEGIS Remote Shield Machine Rigger Hellfire Missile Launcher Multitool [Rating: 120] Favorites ----------- Power Subdweller Power Source Engine Subdweller Power Source Power Core Neutrino Core Reactor Antimatter Reactor Propulsion Armored Wheel Treads Light Treads Leg Myomer Leg Wheel Armored Wheel Hover Unit Antigrav System Flight Unit Cooled Cesium-ion Thruster Utility Humpback Device Deep Structural Scanner Storage Humpback Processor Tech Extrapolator Hackware Improved Hacking Suite Protection Improved Utility Shielding Weapon Subdweller Beam Cannon Energy Gun Subdweller Laser Energy Cannon Subdweller Beam Cannon Ballistic Gun Subdweller Machine Gun Ballistic Cannon Battle Cannon Launcher Scatter Rocket Array Special Weapon Multitool Impact Weapon Hammer Slashing Weapon Companion Sword Special Melee Weapon Datajack Build | -11 -10 -10 -8 -8 -6 -6 -6 -6 -6 -5 -5 -5 -5 -5 -5 -4 -4 -4 -3 -3 -2 ------- Run | Yrd Mat Sub Rec Scr Fac Was Fac Low Zio Pro Fac Ext Cet Arc Hub Fac Was Fac Res Tes Res Slots Evolved 16 | . . . . . 8 . . . . . 2 . . . . 2 . . 2 . 2 Power 1 | . . . . . . . . . . . 1 . . . . . . . . . . Propulsion 6 | . . . . . 3 . . . . . 1 . . . . . . . . . 2 Utility 9 | . . . . . 5 . . . . . . . . . . 2 . . 2 . . Weapon . | . . . . . . . . . . . . . . . . . . . . . . Parts Attached 185 | 7 4 23 . 5 20 3 22 3 1 . 6 22 6 5 4 16 3 4 14 14 3 Power 27 | 1 1 3 . 1 . . 2 . . . 3 9 1 . 1 2 . . 2 1 . Engine 11 | 1 1 3 . 1 . . . . . . . 5 . . . . . . . . . Core 11 | . . . . . . . 2 . . . 3 4 . . 1 1 . . . . . Reactor 5 | . . . . . . . . . . . . . 1 . . 1 . . 2 1 . Propulsion 51 | 2 . 4 . 2 4 1 5 . . . 1 8 2 2 2 6 . 3 5 2 2 Treads 9 | 2 . 2 . . 1 . . . . . . . . 2 . . . . . . 2 Leg 16 | . . . . . . . . . . . . 8 2 . 2 2 . 2 . . . Wheel 4 | . . 2 . 2 . . . . . . . . . . . . . . . . . Hover 6 | . . . . . 1 . . . . . . . . . . 4 . . 1 . . Flight 16 | . . . . . 2 1 5 . . . 1 . . . . . . 1 4 2 . Utility 80 | 2 1 5 . . 15 2 11 3 1 . 2 4 3 2 1 7 3 1 7 9 1 Device 28 | 1 . 1 . . 5 1 3 1 1 . 1 1 1 1 . 2 2 . 3 4 . Storage 5 | 1 1 1 . . . . 1 . . . . . . . . . . . . 1 . Processor 13 | . . . . . 3 . 2 . . . . . . . . 3 1 1 3 . . Hackware 10 | . . . . . 2 . 3 . . . 1 . . 1 . 2 . . . 1 . Protection 24 | . . 3 . . 5 1 2 2 . . . 3 2 . 1 . . . 1 3 1 Artifact . | . . . . . . . . . . . . . . . . . . . . . . Weapon 27 | 2 2 11 . 2 1 . 4 . . . . 1 . 1 . 1 . . . 2 . Energy Gun 2 | . . 2 . . . . . . . . . . . . . . . . . . . Energy Cannon 6 | . . 3 . . . . 1 . . . . . . . . 1 . . . 1 . Ballistic Gun 6 | 2 2 2 . . . . . . . . . . . . . . . . . . . Ballistic Cannon 1 | . . 1 . . . . . . . . . . . . . . . . . . . Launcher 4 | . . 2 . . . . 1 . . . . . . . . . . . . 1 . Special Weapon 2 | . . . . . 1 . 1 . . . . . . . . . . . . . . Impact Weapon 2 | . . 1 . . . . . . . . . 1 . . . . . . . . . Slashing Weapon 2 | . . . . 2 . . . . . . . . . . . . . . . . . Piercing Weapon . | . . . . . . . . . . . . . . . . . . . . . . Special Melee Weapon 2 | . . . . . . . 1 . . . . . . 1 . . . . . . . Unidentified Prototypes 19 | . . . . 1 . . 4 1 1 . . . 3 . . 2 1 . 1 5 . Parts Lost 65 | . 1 . . . 4 . . . . . 1 11 4 2 6 16 . 1 4 3 12 Power 11 | . . . . . . . . . . . . 4 1 . 1 1 . . 1 1 2 Propulsion 26 | . . . . . . . . . . . . 3 2 2 2 7 . 1 2 2 5 Utility 25 | . 1 . . . 3 . . . . . . 4 1 . 2 8 . . 1 . 5 Weapon 2 | . . . . . . . . . . . 1 . . . 1 . . . . . . Highest Loss Streak 9 | . 1 . . . 3 . . . . . 1 4 4 2 5 7 . 1 4 1 9 To Critical Strikes 2 | . . . . . 1 . . . . . . . 1 . . . . . . . . Average Backups 13 | 1 9 9 19 30 11 5 5 9 8 9 9 9 10 10 10 7 4 4 4 5 5 Power . | . . . 3 1 . . . . . . . . . . . . . . . . . Propulsion 1 | . 1 1 2 4 . . . . . . . . 3 3 3 1 . . . . . Utility 6 | . 1 3 8 16 5 2 2 5 5 6 6 6 5 5 5 2 1 2 2 2 2 Weapon 3 | . 5 3 4 5 . . 1 1 1 1 1 1 1 1 1 1 2 1 1 1 2 Tool/Special . | . . . . . . . . . . . . . . . . . . . . . . Unused Backups 40 | . 7 6 . 14 11 . . . . . 1 . . . . . . . 1 . . Power 6 | . . . . 5 1 . . . . . . . . . . . . . . . . Propulsion 10 | . 6 1 . 3 . . . . . . . . . . . . . . . . . Utility 11 | . . . . 6 3 . . . . . 1 . . . . . . . 1 . . Weapon 10 | . 1 5 . . 4 . . . . . . . . . . . . . . . . Tool/Special 3 | . . . . . 3 . . . . . . . . . . . . . . . . Average Slot Usage (%) 84 | . 91 85 85 80 69 81 91 98 100 100 91 84 90 95 97 70 54 64 74 81 60 Engine 8 | . 14 14 14 14 2 5 . . . . . 1 3 . . . . . . . 4 Core 1 | . . . . . . . 5 6 6 6 7 7 5 5 6 8 . . . . . Treads 4 | . 28 9 . . 2 . . . . . . . . 7 10 1 . . . . . Leg 2 | . . . . . . . . . . . . 7 33 24 22 14 . . . . . Wheel 13 | . . 18 28 28 7 . . . . . . . . . . . . . . . . Flight 6 | . . . . . 7 16 32 33 33 33 32 25 . . . . 5 6 12 20 9 Device 3 | . 5 . . . 5 13 13 4 6 6 5 3 1 11 9 5 10 14 20 17 12 Storage 7 | . 14 5 14 14 2 . 1 6 6 6 5 5 5 5 5 2 . . . . 3 Processor 4 | . . . . . 10 11 12 20 19 13 11 7 5 5 5 8 18 21 15 16 12 Hackware 2 | . . . . . 7 13 7 6 6 6 4 5 5 4 5 7 10 10 9 8 3 Protection 6 | . . 8 . . 11 6 7 6 6 13 11 10 19 11 11 9 . . 3 6 8 Energy Cannon 8 | . . 19 14 9 . . . . . . . . . . . . . . . . . Ballistic Gun 5 | . 28 4 14 9 . . . . . . . . . . . . . . . . . Slashing Weapon 2 | . . . . 4 6 6 6 6 6 6 5 5 5 5 5 4 . . 2 4 3 Peak Build Rating 120 | 7 10 33 33 26 47 59 86 83 83 81 88 89 97 107 110 97 77 96 118 120 97 Average Rating 42 | 4 9 17 25 22 39 53 76 78 77 77 81 75 81 101 103 76 63 80 104 101 75 On Entrance 61 | . 7 10 33 17 26 42 58 77 78 77 77 85 73 97 107 81 59 76 79 103 97 Avg Prop Armor Cover (%) 8 | . . 4 . . 8 8 5 . . . 2 3 . 8 9 12 20 17 11 4 8 Naked Turns . | . . . . . . . . . . . . . . . . . . . . . . Heaviest Build 230 | 14 36 221 217 221 230 13 35 36 27 27 33 53 67 62 62 54 3 7 22 32 24 Greatest Support 128 | 40 40 40 22 24 36 20 36 36 30 39 48 128 126 126 101 88 6 50 44 40 27 Greatest Overweight (x) 18 | . . 18 9 9 6 . . 1 . . . 2 . . . 1 . . 1 . 2 Average Overweight (x) 1 | . . 4 9 8 . . . . . . . . . . . . . . . . . Largest Inventory Capacity 35 | 8 15 35 35 35 35 5 10 10 10 10 10 10 10 10 10 10 5 5 5 10 10 Average Capacity 18 | 7 11 15 35 35 16 5 6 10 10 10 10 10 10 10 10 7 5 5 5 5 9 Most Carried 35 | 4 12 35 35 35 34 5 10 10 10 10 10 10 10 10 10 10 5 5 5 7 5 Average Carried 16 | 2 9 13 29 33 12 4 5 9 9 10 9 9 9 10 10 7 4 4 4 5 4 Final Capacity 35 | 8 15 35 35 35 5 5 10 10 10 10 10 10 10 10 10 5 5 5 5 10 5 Final Carried 35 | 4 12 35 25 35 5 5 10 10 10 10 10 10 10 10 10 4 5 5 5 5 5 Class Distribution -------------------- 38% | Hauler-Mutant 17% | Sprinter 13% | Mutant 13% | Subdweller-Mutant 11% | Scavenger-Mutant Dominant Class ---------------- Mutant | -10/Materials Subdweller-Mutant | -10/Subcaves Hauler-Mutant | -8/Recycling Hauler-Mutant | -8/Scraptown Sprinter | -6/Factory Sprinter | -6/Waste Sprinter | -6/Factory Sprinter | -6/Lower Caves Sprinter | -6/Zion Sprinter | -5/Proximity Caves Sprinter | -5/Factory Sprinter | -5/Extension Scavenger-Mutant | -5/Cetus Scavenger-Mutant | -5/Archives Scavenger-Mutant | -5/Hub_04(d) Scavenger-Mutant | -4/Factory Hacker-Mutant | -4/Waste Hacker-Mutant | -4/Factory Hacker-Sprinter | -3/Research Scavenger-Sprinter | -3/Testing Mutant | -2/Research Resources | -11 -10 -10 -8 -8 -6 -6 -6 -6 -6 -5 -5 -5 -5 -5 -5 -4 -4 -4 -3 -3 -2 ----------- Run | Yrd Mat Sub Rec Scr Fac Was Fac Low Zio Pro Fac Ext Cet Arc Hub Fac Was Fac Res Tes Res Matter Collected 4788 | 170 524 885 98 278 216 99 327 96 10 100 75 822 124 70 100 155 . 179 161 197 102 Remotely . | . . . . . . . . . . . . . . . . . . . . . . Salvage Created 7907 | 142 541 1147 177 . 94 . 940 239 . . 315 2412 . 178 389 588 . 134 352 157 102 Parts 384 | 8 35 82 2 . 7 . 31 10 . . 15 91 . 12 13 23 . 7 30 14 4 Haulers Intercepted 5 | . . . . . . . 2 . . . 1 1 . . . 1 . . . . . Recyclers Shooed 3 | . 1 . 1 . . . . . . . . . . . . 1 . . . . . Parts Field Recycled . | . . . . . . . . . . . . . . . . . . . . . . Retrieved Matter . | . . . . . . . . . . . . . . . . . . . . . . Parts Self-Destructed 15 | . . 10 . . . . . 5 . . . . . . . . . . . . . Prevented 1 | . . . . . . . . 1 . . . . . . . . . . . . . Parts Restored . | . . . . . . . . . . . . . . . . . . . . . . Kills | -11 -10 -10 -8 -8 -6 -6 -6 -6 -6 -5 -5 -5 -5 -5 -5 -4 -4 -4 -3 -3 -2 ------- Run | Yrd Mat Sub Rec Scr Fac Was Fac Low Zio Pro Fac Ext Cet Arc Hub Fac Was Fac Res Tes Res Combat Hostiles Destroyed 110 | . 13 24 . . 2 . 5 2 . . 5 36 . . 6 4 . 2 8 2 1 Melee 49 | . . . . . 2 . 4 2 . . 3 19 . . 6 4 . 2 4 2 1 Guns 18 | . 13 5 . . . . . . . . . . . . . . . . . . . Cannons 17 | . . 17 . . . . . . . . . . . . . . . . . . . AOE 24 | . . . . . . . 1 . . . 2 17 . . . . . . 4 . . Classes Destroyed 20 | 2 4 4 . . 1 . 2 1 . . . 5 . . 1 . . . . . . Worker 5 | . 1 . . . . . 1 . . . . 1 . . . . . . 1 1 . Builder 3 | . . . . . . . . . . . . 1 . . . . . . 2 . . Tunneler 3 | 2 . . . . . . . . . . . 1 . . . . . . . . . Hauler 5 | . . . . . . . 2 . . . 1 1 . . . 1 . . . . . Recycler 18 | 1 1 . 2 . . . 4 . . . 1 7 . . . 2 . . . . . Minesweeper 1 | . . . . . . . . 1 . . . . . . . . . . . . . Operator 8 | . 2 . . . . . 1 . . . . . . 5 . . . . . . . Turret 2 | . . 2 . . . . . . . . . . . . . . . . . . . Watcher 2 | . . . . . . . . . . . . 2 . . . . . . . . . Swarmer 35 | . 6 4 . . 1 . 2 . . . 5 12 . . . . . . 5 . . Grunt 34 | . 7 . . . . . 2 1 . . . 21 . . 2 1 . . . . . Duelist 2 | . . . . . . . . . . . . 1 . . . 1 . . . . . Sentry 3 | . . . . . . . . . . . . 1 . . 1 . . . . . 1 Specialist 1 | . . . . . . . . . . . . . . . 1 . . . . . . Hunter 5 | . . . . . 1 . . 1 . . . 1 . . . . . 2 . . . Programmer 10 | . . . . . . . 1 . . . . . . . 2 2 . . 3 2 . Artisan 2 | . . 2 . . . . . . . . . . . . . . . . . . . Cobbler 1 | . . 1 . . . . . . . . . . . . . . . . . . . Subdweller 20 | . . 20 . . . . . . . . . . . . . . . . . . . Savage 1 | . . . . . . . . . . . . 1 . . . . . . . . . Best Kill Streak 11 | 3 7 3 1 . 1 . 3 1 . . 6 11 . 2 3 2 . 2 11 2 1 Combat Bots Only 8 | . 6 3 . . 1 . 2 1 . . 5 8 . . 3 2 . 2 8 2 1 Max Kills in Single Turn 7 | 1 2 1 1 . 1 . 2 1 . . 2 5 . 1 1 1 . 1 7 1 1 Gunslinging . | . . . . . . . . . . . . . . . . . . . . . . Exploded 5 | . . . . . . . 1 . . . 2 5 . . . . . . 4 . . Melee 2 | . . . . . 1 . 1 1 . . 1 2 . . 1 1 . 1 1 1 1 Uniques/NPCs Destroyed . | . . . . . . . . . . . . . . . . . . . . . . Combat | -11 -10 -10 -8 -8 -6 -6 -6 -6 -6 -5 -5 -5 -5 -5 -5 -4 -4 -4 -3 -3 -2 -------- Run | Yrd Mat Sub Rec Scr Fac Was Fac Low Zio Pro Fac Ext Cet Arc Hub Fac Was Fac Res Tes Res Hostile Shots Fired 986 | . 51 98 . . 148 . 29 8 . . 17 128 46 14 84 117 . 22 36 18 170 Missed 382 | . 13 31 . . 85 . 17 3 . . 9 37 19 8 28 37 . 10 12 8 65 Hits 604 | . 38 67 . . 63 . 12 5 . . 8 91 27 6 56 80 . 12 24 10 105 Melee 26 | . . . . . . . . . . . . 1 . . . 25 . . . . . Projectile 578 | . 38 67 . . 63 . 12 5 . . 8 90 27 6 56 55 . 12 24 10 105 AOE 2 | . . 1 . . . . . . . . . . . . . 1 . . . . . Critical Strikes 29 | . 1 . . . . . 2 . . . . 4 4 . 4 10 . . . . 4 Actively Blocked 1 | . . . . . . . . . . . . . . . . 1 . . . . . Part Disruptions 3 | . . . . . . . . . . . . . . . 3 . . . . . . Damage Taken 12725 | . 419 957 27 . 646 . 294 48 . . 146 1983 939 184 1070 2405 . 229 600 263 2515 Core 3601 | . 54 84 14 . 186 . 108 . . . 76 553 39 10 89 631 . 67 89 138 1463 Absorbed by Shields 324 | . . . . . 16 . . . . . . 295 13 . . . . . . . . Redirected to Shielding 585 | . . . . . 63 . 32 . . . 24 218 17 . . 42 . . 89 . 100 Ignored by Resistances 100 | . . . . . . . . . . . . 32 . 42 26 . . . . . . Regen/Repaired (Parts) 70 | . . . . . . 24 46 . . . . . . . . . . . . . . Core Remaining (%) 58 | 100 . . . 39 . . . . . 65 . . . . 23 . . 39 . 82 . Volleys Fired 176 | 5 53 105 . . . . 1 . . 1 . 10 . . . . . . 1 . . Largest 2 | 2 2 2 . . . . 1 . . 1 . 1 . . . . . . 1 . . Hottest 160 | 40 46 160 . . . . 50 . . 50 . 50 . . . . . . 50 . . Shots Fired 287 | 10 106 158 . . . . 1 . . 1 . 10 . . . . . . 1 . . Gun 173 | 10 106 57 . . . . . . . . . . . . . . . . . . . Cannon 96 | . . 96 . . . . . . . . . . . . . . . . . . . Launcher 16 | . . 5 . . . . 1 . . 1 . 8 . . . . . . 1 . . Special 2 | . . . . . . . . . . . . 2 . . . . . . . . . Kinetic 185 | 10 106 69 . . . . . . . . . . . . . . . . . . . Thermal 89 | . . 89 . . . . . . . . . . . . . . . . . . . Explosive 11 | . . . . . . . 1 . . 1 . 8 . . . . . . 1 . . Electromagnetic . | . . . . . . . . . . . . . . . . . . . . . . Robot Hit Streak 14 | 7 14 14 . . . . 1 . . . . 2 . . . . . . . . . Robot Miss Streak 12 | . 3 5 . . . . 7 . . . . 10 . . . . . . 12 . . Penetration Max . | . . . . . . . . . . . . . . . . . . . . . . Secondary Targets 1 | . 1 . . . . . . . . . . . . . . . . . . . . Max Gunslinging Chain 1 | . 1 . . . . . . . . . . . . . . . . . . . . Shots Hit Robots 398 | 7 63 95 . . 8 . 22 12 . . 9 75 2 13 22 34 . 5 15 11 5 Core Hits 292 | 5 26 36 1 . 3 . 11 5 . . 6 139 . 6 15 9 . 3 21 3 3 Critical Kills 2 | . . 2 . . . . . . . . . . . . . . . . . . . Critical Parts Destroyed . | . . . . . . . . . . . . . . . . . . . . . . Critical Strikes 6 | . . 2 . . . . . . . . . . . . 2 2 . . . . . Meltdown 2 | . . 2 . . . . . . . . . . . . . . . . . . . Melee Attacks 443 | . . 43 . . 25 . 51 14 . 4 23 100 2 14 41 52 . 6 37 22 9 Impact 48 | . . 43 . . . . . . . . . 5 . . . . . . . . . Slashing 395 | . . . . . 25 . 51 14 . 4 23 95 2 14 41 52 . 6 37 22 9 Piercing . | . . . . . . . . . . . . . . . . . . . . . . Sneak Attacks 43 | . . . . . . . 8 1 . . 2 14 . 6 1 4 . 1 1 3 2 Combat Hostiles 4 | . . . . . . . 1 . . . . 2 . . . . . 1 . . . Follow-up Attacks 8 | . . . . . . . 1 . . . . 4 . . . 3 . . . . . Damage Inflicted 19351 | 87 1040 2279 55 . 348 . 1418 661 . . 778 6597 82 1009 1259 1520 . 244 1090 600 284 Guns 1730 | 87 1027 616 . . . . . . . . . . . . . . . . . . . Cannons 1395 | . . 1395 . . . . . . . . . . . . . . . . . . . Explosions 4479 | . . 262 . . . . 64 . . . 318 3050 . . 358 . . . 427 . . Melee 11573 | . . . . . 348 . 1354 661 . . 460 3447 82 1009 901 1520 . 244 663 600 284 Ramming 174 | . 13 6 55 . . . . . . . . 100 . . . . . . . . . Kinetic 1923 | 87 1027 809 . . . . . . . . . . . . . . . . . . . Thermal 1782 | . . 1464 . . . . . . . . 318 . . . . . . . . . . Explosive 3541 | . . . . . . . 64 . . . . 3050 . . . . . . 427 . . Electromagnetic 358 | . . . . . . . . . . . . . . . 358 . . . . . . Impact . | . . . . . . . . . . . . . . . . . . . . . . Slashing 11573 | . . . . . 348 . 1354 661 . . 460 3447 82 1009 901 1520 . 244 663 600 284 Piercing . | . . . . . . . . . . . . . . . . . . . . . . Highest Corruption 13 | . . . . . . . 4 . . . . 5 5 5 5 11 11 11 10 13 . Average Corruption 5 | . . . . . . . 2 . . . . 3 5 4 2 10 11 11 9 12 . Corruption Purged 5 | . . . . . . . . . . . . . . 5 . . . . . . . Corruption Blocked . | . . . . . . . . . . . . . . . . . . . . . . Effects 69 | . . . . . . . 3 . . . . 14 11 7 2 8 3 8 3 10 . Message Errors 16 | . . . . . . . . . . . . 3 4 3 1 2 . . 1 2 . Matter Fused 16 | . . . . . . . 2 . . . . 4 1 . . 1 1 3 2 2 . Heat Flow Errors 4 | . . . . . . . 1 . . . . . . . . 2 . . . 1 . Energy Discharges 11 | . . . . . . . . . . . . 1 4 2 . 1 . 1 . 2 . Parts Rejected 1 | . . . . . . . . . . . . 1 . . . . . . . . . Data Loss (minor) 14 | . . . . . . . . . . . . 4 1 2 1 1 1 4 . . . Data Loss (major) 2 | . . . . . . . . . . . . . 1 . . 1 . . . . . Alerts 2 | . . . . . . . . . . . . 1 . . . . . . . 1 . Misdirections 3 | . . . . . . . . . . . . . . . . . 1 . . 2 . Overload Shots . | . . . . . . . . . . . . . . . . . . . . . . Overflow Damage 1250 | . . 17 1 . 36 . 150 78 . . 133 181 38 276 . 113 . . 82 145 . Projectiles 15 | . . 15 . . . . . . . . . . . . . . . . . . . Explosions 61 | . . 2 . . . . . . . . 49 8 . . . . . . 2 . . Melee 1174 | . . . 1 . 36 . 150 78 . . 84 173 38 276 . 113 . . 80 145 . Knockbacks 1 | . . . 1 . . . . . . . . . . . . . . . . . . Impact 1 | . . . 1 . . . . . . . . . . . . . . . . . . Kinetic . | . . . . . . . . . . . . . . . . . . . . . . Secondary . | . . . . . . . . . . . . . . . . . . . . . . Self-Inflicted Damage 260 | . . 3 27 . . . . . . . . 206 . . . . . . 24 . . Shots 7 | . . . . . . . . . . . . 6 . . . . . . 1 . . Rammed 7 | . 3 1 3 . . . . . . . . . . . . . . . . . . Targets Rammed 7 | . 3 1 3 . . . . . . . . . . . . . . . . . . Kicked . | . . . . . . . . . . . . . . . . . . . . . . Crushed . | . . . . . . . . . . . . . . . . . . . . . . Highest Temperature 268 | . 40 144 . . . . 139 11 . 30 156 108 7 . . 197 . . . 268 . Average Temperature 43 | . 13 31 . . . . 57 8 . 14 120 33 6 . . 102 . . . 150 . Received Heat Transfer 1478 | . 168 132 . . 70 . 144 9 . . . 406 120 27 99 168 . . . 18 117 Siege Activations . | . . . . . . . . . . . . . . . . . . . . . . Martial Activations . | . . . . . . . . . . . . . . . . . . . . . . Shielding Activations . | . . . . . . . . . . . . . . . . . . . . . . Robots Disrupted 4 | . . . . . . . 1 . . . . . . . 1 . . . . 1 1 Combat Hostiles 4 | . . . . . . . 1 . . . . . . . 1 . . . . 1 1 Robots Corrupted 1 | . . . 1 . . . . . . . . . . . . . . . . . . Combat Hostiles . | . . . . . . . . . . . . . . . . . . . . . . Parts Fried 3 | . . . 2 . . . . 1 . . . . . . . . . . . . . Impact Corruptions 1 | . . . 1 . . . . . . . . . . . . . . . . . . Robots Melted 2 | . . 2 . . . . . . . . . . . . . . . . . . . Combat Hostiles 2 | . . 2 . . . . . . . . . . . . . . . . . . . Parts Melted 9 | . . 8 . . . . 1 . . . . . . . . . . . . . . Heat Transferred 2212 | . . 1962 . . . . . . . . 250 . . . . . . . . . . Parts Sabotaged . | . . . . . . . . . . . . . . . . . . . . . . Parts Stolen . | . . . . . . . . . . . . . . . . . . . . . . Parts Stripped . | . . . . . . . . . . . . . . . . . . . . . . Power Chain Reactions 2 | . . . . . . . . . . . . . . . 2 . . . . . . Alert | -11 -10 -10 -8 -8 -6 -6 -6 -6 -6 -5 -5 -5 -5 -5 -5 -4 -4 -4 -3 -3 -2 ------- Run | Yrd Mat Sub Rec Scr Fac Was Fac Low Zio Pro Fac Ext Cet Arc Hub Fac Was Fac Res Tes Res Maximum Alert Level 5 | . . . . . 2 . 4 . . . 2 5 3 2 3 1 . . 1 . . Low Security (%) 56 | 100 100 . 100 . 77 100 3 . . . 48 . . . 18 83 100 100 76 100 100 Level 1 16 | . . . . . 16 . 5 . . . 44 17 . 85 70 16 . . 23 . . Level 2 5 | . . . . . 5 . 7 . . . 7 19 . 14 1 . . . . . . Level 3 11 | . . . . . . . 26 . . . . 27 100 . 9 . . . . . . Level 4 7 | . . . . . . . 56 . . . . 18 . . . . . . . . . Level 5 2 | . . . . . . . . . . . . 17 . . . . . . . . . High Security . | . . . . . . . . . . . . . . . . . . . . . . Max Security . | . . . . . . . . . . . . . . . . . . . . . . Peak Influence 1792 | 15 183 . 30 . 488 168 1503 . . . 462 1792 994 417 784 373 5 69 240 128 186 Initial 994 | . . . . . . 168 68 . . . . 213 994 322 112 373 5 . 30 113 20 Average 346 | 1 77 . 5 . 100 132 1066 . . . 181 913 889 362 283 115 3 20 68 30 52 Influence Increases 9546 | 15 389 180 213 . 777 . 2041 75 . . 690 2459 292 170 1012 174 . 197 420 220 222 Destroy 0b10 Robot/C 3440 | . 260 120 . . 40 . 740 40 . . 100 1320 160 80 240 80 . 40 160 40 20 Destroy 0b10 Robot/NC 310 | 15 20 . 10 . . . 95 10 . . 10 80 10 25 . 15 . . 15 5 . Destroy Leader 476 | . 60 . . . 10 . 128 10 . . 12 134 . . 60 12 . 10 20 10 10 Allied During Kill 1292 | . . . . . . . 561 . . . . 579 87 50 15 . . . . . . Successful Hack 278 | . 34 . 23 . 22 . 41 . . . 9 28 . . . 12 . 40 6 63 . Select Force Hacks 260 | . . . 180 . . . . . . . 30 . . . 50 . . . . . . Disable Machine 420 | . 15 . . . . . 105 . . . 60 45 . 15 120 . . . 30 30 . Anti-Garrison Action 300 | . . . . . 150 . . . . . . . . . . . . . . . 150 Destroy Structure 910 | . . . . . 15 . 161 . . . 64 228 20 . 302 10 . 2 84 12 12 Partial Spotted 345 | . . . . . 15 . 75 . . . 75 45 . . . . . 90 15 15 15 Lose Combat Pursuer 1515 | . . 60 . . 525 . 135 15 . . 330 . 15 . 225 45 . 15 90 45 15 Influence Decreases 9487 | 15 264 305 213 . 297 382 644 664 906 . 254 1119 1262 654 572 921 15 138 277 386 199 Entered New Map 4095 | . . 61 . . . 312 30 554 906 . . 223 782 484 210 389 10 . 29 89 16 Time Decay 3347 | 15 254 244 213 . 137 70 334 110 . . 124 506 180 150 262 227 5 90 208 158 60 Search Patrol Dispatched 100 | . . . . . . . . . . . 100 . . . . . . . . . . Lost Part 589 | . 10 . . . 10 . . . . . 10 110 40 20 60 155 . 10 40 21 103 Lost Ally 900 | . . . . . . . 280 . . . 20 280 260 . 40 . . . . . 20 Purge Threat 456 | . . . . . 150 . . . . . . . . . . 150 . 38 . 118 . Squads Dispatched 64 | . 2 . . . 8 . 17 . . . 9 6 . . 5 . . 2 9 3 3 Investigation 33 | . . . . . 4 . 11 . . . 8 3 . . 1 . . 1 3 1 1 Extermination 7 | . . . . . 1 . 2 . . . . . . . 1 . . 1 1 1 . Reinforcement 17 | . 2 . . . 1 . 3 . . . 1 1 . . 3 . . . 5 1 . Assault 7 | . . . . . 2 . 1 . . . . 2 . . . . . . . . 2 Garrison . | . . . . . . . . . . . . . . . . . . . . . . Intercept . | . . . . . . . . . . . . . . . . . . . . . . Searches Triggered 1 | . . . . . . . . . . . 1 . . . . . . . . . . Construction Impeded 4 | . . . . . . . 1 . . . . 1 . . 1 . . . 1 . . Haulers Reinforced 1 | . . . . . . . 1 . . . . . . . . . . . . . . Active Scanning Responses . | . . . . . . . . . . . . . . . . . . . . . . Cargo Convoy Interrupts 1 | . . . . . . . 1 . . . . . . . . . . . . . . Stealth | -11 -10 -10 -8 -8 -6 -6 -6 -6 -6 -5 -5 -5 -5 -5 -5 -4 -4 -4 -3 -3 -2 --------- Run | Yrd Mat Sub Rec Scr Fac Was Fac Low Zio Pro Fac Ext Cet Arc Hub Fac Was Fac Res Tes Res Distress Signals 15 | . 2 . . . . . 1 . . . 2 1 3 . 1 . . . 4 1 . Communications Jammed 33 | . . . . . . . . . . . . . . . . 9 . . . 24 . Distress Signals 33 | . . . . . . . . . . . . . . . . 9 . . . 24 . Times Spotted 332 | . 20 29 . . 49 . 33 3 . . 33 64 10 14 22 11 6 4 15 10 9 Peak Tracking Total 15 | . 5 6 . . 10 . 9 1 . . 15 6 5 2 9 4 6 2 5 8 8 Tactical Retreats 41 | . . 2 . . 10 . 6 1 . . 7 . 1 . 7 2 . 1 2 1 1 Traps | -11 -10 -10 -8 -8 -6 -6 -6 -6 -6 -5 -5 -5 -5 -5 -5 -4 -4 -4 -3 -3 -2 ------- Run | Yrd Mat Sub Rec Scr Fac Was Fac Low Zio Pro Fac Ext Cet Arc Hub Fac Was Fac Res Tes Res Traps Triggered 15 | . 1 1 . . 1 . 3 . . . . 4 . . . 2 . . . 3 . Indirectly . | . . . . . . . . . . . . . . . . . . . . . . Trap Hack Attempts . | . . . . . . . . . . . . . . . . . . . . . . Triggered . | . . . . . . . . . . . . . . . . . . . . . . Disarmed . | . . . . . . . . . . . . . . . . . . . . . . Reprogrammed . | . . . . . . . . . . . . . . . . . . . . . . Reused . | . . . . . . . . . . . . . . . . . . . . . . Traps Extracted . | . . . . . . . . . . . . . . . . . . . . . . Installed . | . . . . . . . . . . . . . . . . . . . . . . Triggered . | . . . . . . . . . . . . . . . . . . . . . . Most Traps Carried 3 | . . . . 3 3 . . 1 . . . . . . . . . . . . . Objects Rigged 4 | . . . . . . . . . . . 2 . . . 2 . . . . . . Exploded 2 | . . . . . . . . . . . 1 . . . 1 . . . . . . Machines | -11 -10 -10 -8 -8 -6 -6 -6 -6 -6 -5 -5 -5 -5 -5 -5 -4 -4 -4 -3 -3 -2 ---------- Run | Yrd Mat Sub Rec Scr Fac Was Fac Low Zio Pro Fac Ext Cet Arc Hub Fac Was Fac Res Tes Res Machines Disabled 33 | . 1 3 . . 1 . 7 . . . 4 3 . 1 8 . . . 2 2 1 Max in Single Turn 8 | . 1 2 . . 1 . . . . . 4 1 . . 8 . . . 1 1 . Garrison Access 8 | . . . . . 1 . 2 . . . 1 . . . 1 1 . . 1 . 1 Network Hub 2 | . . . . . . . . . . . . . . . 2 . . . . . . Machines Repaired . | . . . . . . . . . . . . . . . . . . . . . . Machines Dismantled . | . . . . . . . . . . . . . . . . . . . . . . Machines Sabotaged 1 | . . . . . . . . . . . . . . . 1 . . . . . . Overloaded Fab Kills . | . . . . . . . . . . . . . . . . . . . . . . Hacking | -11 -10 -10 -8 -8 -6 -6 -6 -6 -6 -5 -5 -5 -5 -5 -5 -4 -4 -4 -3 -3 -2 --------- Run | Yrd Mat Sub Rec Scr Fac Was Fac Low Zio Pro Fac Ext Cet Arc Hub Fac Was Fac Res Tes Res Machines Accessed 95 | . 3 4 12 3 8 . 20 . . . 15 9 1 . 2 2 . 3 6 6 1 Terminals 46 | . 3 . 6 . 2 . 8 . . . 7 9 1 . 1 1 . 3 2 3 . Fabricators 12 | . . . . . 2 . 4 . . . 3 . . . . . . . 2 1 . Repair Stations 3 | . . . . . . . 1 . . . . . . . . . . . . 2 . Recycling Units 18 | . . . 6 . 2 . 5 . . . 3 . . . . . . . 1 . 1 Scanalyzers 2 | . . . . . 1 . . . . . 1 . . . . . . . . . . Garrison Access 7 | . . . . . 1 . 2 . . . 1 . . . 1 1 . . 1 . . Total Hacks 250 | . 12 8 28 4 15 . 49 . . . 39 15 1 . 4 11 . 14 22 27 1 Successful 135 | . 8 8 14 4 10 . 27 . . . 19 6 . . 2 4 . 9 9 14 1 Failed 115 | . 4 . 14 . 5 . 22 . . . 20 9 1 . 2 7 . 5 13 13 . Catastrophic 25 | . 1 . 2 . 2 . 5 . . . 1 3 1 . . 2 . 1 3 4 . Database Lockouts . | . . . . . . . . . . . . . . . . . . . . . . Manual 115 | . 5 . 16 . 7 . 19 . . . 27 . 1 . 2 . . 11 14 12 1 Terminals 152 | . 12 . 21 . 5 . 22 . . . 20 15 1 . 2 9 . 14 12 19 . Fabricators 41 | . . . . . 5 . 19 . . . 8 . . . . . . . 7 2 . Repair Stations 7 | . . . . . . . 1 . . . . . . . . . . . . 6 . Recycling Units 24 | . . . 7 . 2 . 5 . . . 8 . . . . . . . 1 . 1 Scanalyzers 3 | . . . . . 1 . . . . . 2 . . . . . . . . . . Garrison Access 11 | . . . . . 2 . 2 . . . 1 . . . 2 2 . . 2 . . Terminal Hacks 54 | . 6 8 4 4 2 . 6 . . . 3 6 . . . 3 . 4 2 6 . Record 7 | . . 5 . 2 . . . . . . . . . . . . . . . . . Part Schematic 7 | . . . 3 . . . 1 . . . . . . . . . . 1 1 1 . Robot Analysis 3 | . 1 . . . 1 . . . . . 1 . . . . . . . . . . Prototype ID Bank 3 | . . . 1 . . . 1 . . . . . . . . 1 . . . . . Open Door 9 | . . 1 . 1 . . . . . . 1 6 . . . . . . . . . Branch Access Points 4 | . . . . . . . 1 . . . 1 . . . . . . 1 . 1 . Terminal Index 1 | . . . . . . . 1 . . . . . . . . . . . . . . Fabricator Index 2 | . . . . . . . 1 . . . . . . . . . . . 1 . . Alert Level 1 | . . . . . . . . . . . . . . . . 1 . . . . . Unreport Threat 4 | . . . . . 1 . . . . . . . . . . 1 . 1 . 1 . Locate Traps 4 | . 2 . . . . . . . . . . . . . . . . . . 2 . Patrol Status 4 | . 2 . . . . . . . . . . . . . . . . 1 . 1 . Registered Prototypes 1 | . 1 . . . . . . . . . . . . . . . . . . . . Zone Layout 1 | . . . . . . . 1 . . . . . . . . . . . . . . Proto ID Catalog 2 | . . 1 . 1 . . . . . . . . . . . . . . . . . Release Object 1 | . . 1 . . . . . . . . . . . . . . . . . . . Fabricator Hacks 21 | . . . . . 2 . 10 . . . 4 . . . . . . . 3 2 . Network Status 1 | . . . . . . . . . . . 1 . . . . . . . . . . Load Schematic 14 | . . . . . 1 . 7 . . . 3 . . . . . . . 2 1 . Build 6 | . . . . . 1 . 3 . . . . . . . . . . . 1 1 . Repair Station Hacks 1 | . . . . . . . . . . . . . . . . . . . . 1 . Refit 1 | . . . . . . . . . . . . . . . . . . . . 1 . Recycling Unit Hacks . | . . . . . . . . . . . . . . . . . . . . . . Scanalyzer 2 | . . . . . 1 . . . . . 1 . . . . . . . . . . Retrieve Study 2 | . . . . . 1 . . . . . 1 . . . . . . . . . . Garrison Access Hacks 6 | . . . . . . . 2 . . . 1 . . . 1 1 . . 1 . . Seal Access 6 | . . . . . . . 2 . . . 1 . . . 1 1 . . 1 . . Unauthorized Hacks 51 | . 2 . 10 . 5 . 9 . . . 10 . . . 1 . . 5 3 5 1 Terminals 27 | . 2 . 4 . 2 . 1 . . . 6 . . . 1 . . 5 1 5 . Track 3 | . . . 1 . 1 . 1 . . . . . . . . . . . . . . Assimilate 3 | . . . . . . . . . . . 2 . . . . . . . . 1 . Botnet 11 | . 1 . 2 . . . . . . . 2 . . . . . . 3 1 2 . Operators 3 | . . . . . 1 . . . . . 1 . . . . . . 1 . . . Skim 6 | . 1 . 1 . . . . . . . 1 . . . . . . 1 . 2 . Sabotage 1 | . . . . . . . . . . . . . . . 1 . . . . . . Fabricators 6 | . . . . . 1 . 2 . . . 2 . . . . . . . 1 . . Recompile 6 | . . . . . 1 . 2 . . . 2 . . . . . . . 1 . . Repair Stations 1 | . . . . . . . 1 . . . . . . . . . . . . . . Patch 1 | . . . . . . . 1 . . . . . . . . . . . . . . Recycling Units 16 | . . . 6 . 2 . 5 . . . 1 . . . . . . . 1 . 1 Tunnel 6 | . . . 6 . . . . . . . . . . . . . . . . . . Fedlink 9 | . . . . . 2 . 5 . . . 1 . . . . . . . 1 . . Scraphulk 1 | . . . . . . . . . . . . . . . . . . . . . 1 Scanalyzers 1 | . . . . . . . . . . . 1 . . . . . . . . . . Extract 1 | . . . . . . . . . . . 1 . . . . . . . . . . Garrison Access . | . . . . . . . . . . . . . . . . . . . . . . Data Cores Recovered 1 | . . . . . . . 1 . . . . . . . . . . . . . . Used . | . . . . . . . . . . . . . . . . . . . . . . Hacking Detections 50 | . 2 . 5 . 4 . 10 . . . 10 6 1 . 1 1 . 3 4 3 . Full Trace Events 16 | . . . 2 . 1 . 3 . . . 4 3 . . . . . 1 1 1 . Feedback Events 2 | . . . . . . . . . . . . 1 . . . . . . . 1 . Corruption 2 | . . . . . . . . . . . . 1 . . . . . . . 1 . Feedback Blocked . | . . . . . . . . . . . . . . . . . . . . . . Robot Schematics Acquired . | . . . . . . . . . . . . . . . . . . . . . . Robots Built . | . . . . . . . . . . . . . . . . . . . . . . Authchips . | . . . . . . . . . . . . . . . . . . . . . . Time . | . . . . . . . . . . . . . . . . . . . . . . Total Robot Build Rating . | . . . . . . . . . . . . . . . . . . . . . . Part Schematics Acquired 50 | . . . 3 . 7 2 11 3 3 1 6 8 1 1 1 . . 1 1 1 . Parts Built 10 | . . . . . 2 . 4 . . . . . . . . . . . 2 2 . Authchips 4 | . . . . . . . 3 . . . . . . . . . . . . 1 . Time 275 | . . . . . 36 . 157 . . . . . . . . . . . 24 58 . Total Part Build Rating 43 | . . . . . 6 . 17 . . . . . . . . . . . 6 14 . Part Studies Acquired 2 | . . . . . 1 . . . . . 1 . . . . . . . . . . Parts Repaired . | . . . . . . . . . . . . . . . . . . . . . . Time . | . . . . . . . . . . . . . . . . . . . . . . Parts Recycled . | . . . . . . . . . . . . . . . . . . . . . . Recycled Matter . | . . . . . . . . . . . . . . . . . . . . . . Retrieved Matter . | . . . . . . . . . . . . . . . . . . . . . . Retrieved Components . | . . . . . . . . . . . . . . . . . . . . . . Parts Scanalyzed . | . . . . . . . . . . . . . . . . . . . . . . Part Schematics Acquired . | . . . . . . . . . . . . . . . . . . . . . . Parts Damaged . | . . . . . . . . . . . . . . . . . . . . . . Bothacking | -11 -10 -10 -8 -8 -6 -6 -6 -6 -6 -5 -5 -5 -5 -5 -5 -4 -4 -4 -3 -3 -2 ------------ Run | Yrd Mat Sub Rec Scr Fac Was Fac Low Zio Pro Fac Ext Cet Arc Hub Fac Was Fac Res Tes Res Used RIF Installer . | . . . . . . . . . . . . . . . . . . . . . . Robots Hacked . | . . . . . . . . . . . . . . . . . . . . . . Non-combat . | . . . . . . . . . . . . . . . . . . . . . . Combat . | . . . . . . . . . . . . . . . . . . . . . . Robot Hacks Applied . | . . . . . . . . . . . . . . . . . . . . . . Relay Couplers Released 6 | . . . . . 3 . . . . . . . . . . . . . . . 3 Machine Destruction 6 | . . . . . 3 . . . . . . . . . . . . . . . 3 Fabnet Peak Effective % . | . . . . . . . . . . . . . . . . . . . . . . Robots Rewired 16 | . . . . . . . . . . . . 16 . . . . . . . . . Allies Hacked 1 | . . . . . . . 1 . . . . . . . . . . . . . . Hacks Repelled . | . . . . . . . . . . . . . . . . . . . . . . Allies | -11 -10 -10 -8 -8 -6 -6 -6 -6 -6 -5 -5 -5 -5 -5 -5 -4 -4 -4 -3 -3 -2 -------- Run | Yrd Mat Sub Rec Scr Fac Was Fac Low Zio Pro Fac Ext Cet Arc Hub Fac Was Fac Res Tes Res Total Allies 57 | . . . . . . 20 . . . . 2 28 5 . . . . . . 1 1 Largest Group 20 | . . . . . . 20 20 . . . 2 10 10 2 2 . . . . 1 1 Highest-Rated Group 717 | . . . . . . 717 717 . . . 20 436 460 192 192 . . . . 45 139 Highest-Rated Ally 159 | . . . . . . 50 50 . . . 10 159 159 96 96 . . . . 45 139 Total Orders . | . . . . . . . . . . . . . . . . . . . . . . Ally Attacks 492 | . . . . . . . 160 . . . . 198 83 19 30 . . . . . 2 Total Damage 14468 | . . . . . . . 6111 . . . . 4216 2348 685 1032 . . . . . 76 Kills 100 | . . . . . . . 44 . . . . 36 10 4 6 . . . . . . Allies Corrupted . | . . . . . . . . . . . . . . . . . . . . . . Allies Melted . | . . . . . . . . . . . . . . . . . . . . . . Intel | -11 -10 -10 -8 -8 -6 -6 -6 -6 -6 -5 -5 -5 -5 -5 -5 -4 -4 -4 -3 -3 -2 ------- Run | Yrd Mat Sub Rec Scr Fac Was Fac Low Zio Pro Fac Ext Cet Arc Hub Fac Was Fac Res Tes Res Active Infowar (turns) 4503 | 18 340 . . . 70 129 732 233 174 151 335 637 35 314 442 151 1 1 385 321 34 Optics 2234 | . . . . . . . 704 233 174 151 335 637 . . . . . . . . . Sensors 738 | . . . . . . . . . . . . . . . . . . . 383 321 34 IFF 17 | . . . . . 17 . . . . . . . . . . . . . . . . Structural 1965 | . . . . . . . 391 171 171 151 282 8 35 314 442 . . . . . . Seismic 411 | 18 340 . . . 53 . . . . . . . . . . . . . . . . Cloaking 452 | . . . . . . 129 153 . . . . . . . . . 1 1 33 135 . Jamming 222 | . . . . . . . . . . . . . . . . 151 . . . 71 . Robot Analysis Total 3 | . 1 . . . 1 . . . . . 1 . . . . . . . . . . Derelict Logs Recovered 13 | . . 3 . 5 . . . 1 1 3 . . . . . . . . . . . Drone Launches . | . . . . . . . . . . . . . . . . . . . . . . Drone Recoveries . | . . . . . . . . . . . . . . . . . . . . . . Exploration | -11 -10 -10 -8 -8 -6 -6 -6 -6 -6 -5 -5 -5 -5 -5 -5 -4 -4 -4 -3 -3 -2 ------------- Run | Yrd Mat Sub Rec Scr Fac Was Fac Low Zio Pro Fac Ext Cet Arc Hub Fac Was Fac Res Tes Res Turns Passed 17505 | 130 865 4974 1391 3372 642 159 740 233 174 151 335 1369 369 316 567 493 31 220 524 321 129 Spaces Moved 15854 | 65 385 2713 626 1511 983 296 1710 633 696 543 1018 1388 214 177 237 374 72 481 945 556 231 Core 25 | 4 . . . . . . . . . . . 4 . . . . . . . . 17 Treads 549 | 61 385 103 . . . . . . . . . . . . . . . . . . . Legs 996 | . . . . . . . . . . . . 154 214 177 237 206 . 8 . . . Wheels 4868 | . . 2610 626 1511 121 . . . . . . . . . . . . . . . . Hover 103 | . . . . . . . . . . . . . . . . 103 . . . . . Flight 9313 | . . . . . 862 296 1710 633 696 543 1018 1230 . . . 65 72 473 945 556 214 Fastest Speed 6 | 50 160 105 220 210 32 30 17 17 24 14 6 14 120 120 110 32 35 34 31 27 29 Average Speed 85 | 153 160 152 220 219 52 31 26 24 24 23 21 34 120 120 118 85 35 36 32 29 38 Slowest Speed 360 | 160 160 360 220 225 180 32 34 101 24 24 24 150 120 120 120 140 35 120 120 34 150 Overloaded Moves 182 | . . . . . . . 5 22 . 11 33 91 . . . 20 . . . . . Propulsion Burnouts . | . . . . . . . . . . . . . . . . . . . . . . Robots Hopped 25 | . . . . . 10 1 . . . . 1 2 . . . 3 . 3 2 2 1 Potential Cave-ins . | . . . . . . . . . . . . . . . . . . . . . . Cave-ins Triggered 1 | . . . . . . . . . . . . . . . . 1 . . . . . Exploration Rate (%) 57 | 6 69 97 93 89 22 90 40 70 86 82 34 95 55 83 39 12 91 14 23 64 7 Regions Visited 21 Branch Regions 11 Pre-discovered Areas 11 | . . 3 6 . 1 . . . 1 . . . . . . . . . . . . Known Exits Taken 5 | . . . . . . . 1 . . . 1 . . . 1 . . . 1 1 . Unknown Exits Taken 12 | 1 1 1 1 1 . . . 1 1 1 . 1 1 1 . . . 1 . . . Scrap Searched 25 | . . 12 . 6 . . . 2 2 3 . . . . . . . . . . . Spaces Dug 177 | . . 29 . . 15 . 20 2 . 57 11 1 . . 11 5 . 1 16 6 3 Terrain Destroyed 744 | . . 92 . . 15 . 56 2 . 57 44 235 . . 186 5 . 1 42 6 3 Melee 99 | . . 4 . . 15 . 20 2 . 4 11 1 . . 11 5 . 1 16 6 3 Projectile 14 | . . 14 . . . . . . . . . . . . . . . . . . . AOE 631 | . . 74 . . . . 36 . . 53 33 234 . . 175 . . . 26 . . Terrain Rammed 1 | . . . . . . . . . . . . 1 . . . . . . . . . Walls Destroyed . | . . . . . . . . . . . . . . . . . . . . . . Machines Disabled 1 | . . . . . . . . . . . . 1 . . . . . . . . . Actions | -11 -10 -10 -8 -8 -6 -6 -6 -6 -6 -5 -5 -5 -5 -5 -5 -4 -4 -4 -3 -3 -2 --------- Run | Yrd Mat Sub Rec Scr Fac Was Fac Low Zio Pro Fac Ext Cet Arc Hub Fac Was Fac Res Tes Res Total 18873 | 84 552 3305 638 1573 1067 359 1935 692 702 554 1103 2149 321 259 461 471 76 515 1099 692 266 Wait 1538 | 2 80 340 . 3 22 55 109 19 . 5 45 341 92 58 173 14 . 18 81 65 16 Move 15786 | 64 384 2712 625 1510 964 293 1709 632 695 542 1015 1383 213 176 236 368 71 474 940 551 229 Hop 24 | . . . . . 9 1 . . . . 1 2 . . . 3 . 3 2 2 1 Pick Up 115 | 6 17 21 7 30 3 2 8 5 1 . 2 5 1 . . 2 1 . 2 2 . Fast Attach 161 | 5 1 17 . 3 6 2 14 4 2 . 4 21 8 7 4 21 3 4 17 16 2 Attach 66 | 2 1 3 . 1 15 2 7 2 1 . 1 14 1 . . 4 . 3 4 4 1 Detach 41 | . 1 3 . . 3 . 4 2 . . . 12 . . . 2 . 3 3 5 3 Swap 58 | . 2 23 . 1 2 2 5 4 . 2 6 4 . . 4 . . . 2 1 . Drop 174 | . 10 24 3 23 17 2 12 10 3 . 4 15 4 4 1 8 1 3 10 15 5 Fire 176 | 5 53 105 . . . . 1 . . 1 . 10 . . . . . . 1 . . Melee 433 | . . 43 . . 25 . 50 14 . 4 23 94 2 14 41 49 . 6 37 22 9 Ram 5 | . . 1 3 . . . . . . . . 1 . . . . . . . . . Kick . | . . . . . . . . . . . . . . . . . . . . . . Crush 3 | . 3 . . . . . . . . . . . . . . . . . . . . Escape Stasis 83 | . . . . . . . 15 . . . . 60 . . . . . . . 8 . Rewire 189 | . . . . 2 . . . . . . . 187 . . . . . . . . . Trap 4 | . . . . . . . . . . . 2 . . . 2 . . . . . . Miscellaneous 17 | . . 13 . . 1 . 1 . . . . . . . . . . 1 . 1 . Route ------- -11/Scrapyard -10/Materials (discovered 3 exits: [*Min x2] / *Sub) -10/Subcaves (discovered 3 exits: [*Mat x2] / *Rec) -8/Recycling -8/Scraptown (discovered 2 exits: *Fac x2) -6/Factory -6/Waste -6/Factory (discovered 2 exits: *Low x2) -6/Lower Caves (discovered 2 exits: [*Low] / [*Zio]) -6/Zion -5/Proximity Caves -5/Factory (discovered 6 exits: *Fac x2 / Upp x2 / *Ext x2) -5/Extension (discovered 2 exits: *Fac / *Cet) -5/Cetus (discovered 2 exits: *Fac / [*Arc]) -5/Archives (discovered 3 exits: Fac / *Hub x2) -5/Hub_04(d) (discovered 2 exits: *Fac x2) -4/Factory -4/Waste -4/Factory (discovered 4 exits: *Res / *Upp x2 / Arm) -3/Research (discovered 2 exits: Res / *Tes) -3/Testing -2/Research History --------- Turn | Location | Event 5 | -11/Scrapyard | Discovered new exit (range 15) 131 | -11/Scrapyard | Entered Materials 300 | -10/Materials | Build established: Mutant 482 | -10/Materials | Discovered new exit (range 16) 740 | -10/Materials | Discovered new exit (range 8) 988 | -10/Materials | Discovered new exit (range 5) 996 | -10/Materials | Entered Subcaves 1082 | -10/Subcaves | Learned location of Zion (-6) 1098 | -10/Subcaves | Discovered new exit (range 10) 1132 | -10/Subcaves | Disturbed a concealed Subdweller 1674 | -10/Subcaves | Discovered new exit (range 11) 2178 | -10/Subcaves | Build established: Subdweller-Mutant 2194 | -10/Subcaves | A swath of the cavern ceiling suddenly collapsed 2437 | -10/Subcaves | Shifting Twisted Machinery released Shrapnel Trap 2449 | -10/Subcaves | Shifting Twisted Machinery released Mak. Light Armor Plating 2688 | -10/Subcaves | Discovered new exit (range 14) 2786 | -10/Subcaves | Visited Clippyterm 2790 | -10/Subcaves | Learned location of Extension (-5) 2790 | -10/Subcaves | Learned Factory garrison access intel 2856 | -10/Subcaves | Met a Zionite searching for "candidates" 2935 | -10/Subcaves | Disturbed a concealed Subdweller 3564 | -10/Subcaves | Learned location of 2 exits from Materials 3596 | -10/Subcaves | Visited 4L-MR0's lab 3994 | -10/Subcaves | Learned 2 Materials zone layouts 4611 | -10/Subcaves | Build established: Hauler-Mutant 4810 | -10/Subcaves | Found SUBCON Basin 5138 | -10/Subcaves | Found Power Bank 5598 | -10/Subcaves | Ambushed by Subdweller buried in earth 5604 | -10/Subcaves | Core integrity fell below 50% 5970 | -10/Subcaves | Entered Recycling 6697 | -8/Recycling | Scanned before Scraplab entrance 6728 | -8/Recycling | Entered Scraplab 7358 | -8/Recycling | Discovered new exit (range 2) 7361 | -8/Recycling | Entered Scraptown 7511 | -8/Scraptown | Heard Great Nut preacher, LISTEN AND RECITE! 7742 | -8/Scraptown | Discovered new exit (range 11) 7872 | -8/Scraptown | Scanned Subdweller tech in exchange for log data 7881 | -8/Scraptown | Learned Research non-interactive machine intel 7884 | -8/Scraptown | Learned Factory terminal intel 7886 | -8/Scraptown | Learned Factory trap positions 7888 | -8/Scraptown | Learned 8 Research zone layouts 8057 | -8/Scraptown | Visited Comm Corps 8093 | -8/Scraptown | Visited Red Mages 8274 | -8/Scraptown | Visited Cave Peace 8304 | -8/Scraptown | Visited CPS Storage 8406 | -8/Scraptown | Visited Fellowship of the Rings 8752 | -8/Scraptown | Visited The Evicted 8827 | -8/Scraptown | Visited Symbiants 8881 | -8/Scraptown | Visited UFD Registry 8881 | -8/Scraptown | Registered with UFD as "Toolranger" 8955 | -8/Scraptown | Visited Scrap Suit Storage 9031 | -8/Scraptown | Visited Science Guys 9126 | -8/Scraptown | Visited Junk Repository 9270 | -8/Scraptown | Visited Chapter 10 9333 | -8/Scraptown | Delivered Scrap Shield to a Scientist 9620 | -8/Scraptown | Visited DA-N13 Charitable Foundation 9645 | -8/Scraptown | Found DCF Scrap (28 items) 9722 | -8/Scraptown | Visited Scrapoid Pod Storage 9770 | -8/Scraptown | Visited Observation Area 9840 | -8/Scraptown | Visited Scrapoid Research Area 9892 | -8/Scraptown | Visited Research Penetration Think Tank 9947 | -8/Scraptown | Visited Sword Containment 10521 | -8/Scraptown | Found Scrapoid Pod 10587 | -8/Scraptown | Met Optimus 10587 | -8/Scraptown | Accepted into 0bPrime 10724 | -8/Scraptown | Discovered new exit (range 3) 10731 | -8/Scraptown | Civil war broke out across Scraptown 10733 | -8/Scraptown | Entered Factory 10733 | -6/Factory | Evolved 8 slots: Propulsion x3, Utility x5 10734 | -6/Factory | Loaded intel: 100 trap records 10735 | -6/Factory | Loaded intel: 25 terminal locations 10736 | -6/Factory | Loaded intel: 3 garrison access locations 10799 | -6/Factory | Discovered new exit (range 13) 10832 | -6/Factory | Spotted B-75 Beast 10886 | -6/Factory | Tech Extrapolator generated special schematic: Deep Structural Scanner 11013 | -6/Factory | Lost 3 parts (2u) 11137 | -6/Factory | Fabricated Imp. Propulsion Shielding? 11137 | -6/Factory | Loaded intel: 7 recycling unit locations 11316 | -6/Factory | Learned location of Protoforge (-2) 11353 | -6/Factory | Build established: Sprinter 11375 | -6/Factory | Manually triggered Chute Trap 11375 | -6/Factory | Sucked down chute 11375 | -6/Factory | Entered Waste 11376 | -6/Waste | Joined by Warlord forces that had cleared the area 11487 | -6/Waste | Discovered new exit (range 12) 11534 | -6/Waste | Entered Factory 11534 | -6/Factory | Accompanied by 20 allies 11635 | -6/Factory | Lost 4 allies 11646 | -6/Factory | Fabricated Deep Structural Scanner (x1) 11656 | -6/Factory | Loaded intel: 8 recycling unit locations 11672 | -6/Factory | Found Prototype Launcher 11672 | -6/Factory | Identified Scatter Rocket Array 11717 | -6/Factory | Lost 3 allies 11906 | -6/Factory | Tech Extrapolator generated special schematic: Machine Rigger 12012 | -6/Factory | Fabricated Machine Rigger (x1) 12074 | -6/Factory | Fabricated Imp. Utility Shielding? 12124 | -6/Factory | Cargo convoy interrupted 12154 | -6/Factory | Identified exit to Lower Caves 12234 | -6/Factory | First assault squad dispatched 12274 | -6/Factory | Entered Lower Caves 12276 | -6/Lower Caves | UFD Scientist delivered a prototype 12276 | -6/Lower Caves | Encountered a Warlord checkpoint 12277 | -6/Lower Caves | Found Prototype Protection 12277 | -6/Lower Caves | Identified Enh. Scrap Shield 12309 | -6/Lower Caves | Learned 4 Factory zone layouts 12372 | -6/Lower Caves | A Derelict revealed a hidden shortcut to a safe place 12404 | -6/Lower Caves | Discovered new exit (range 14) 12507 | -6/Lower Caves | Entered Zion 12525 | -6/Zion | Discovered new exit (range 16) 12540 | -6/Zion | System corruption cleaned by Quarantine Array 12594 | -6/Zion | Learned Factory garrison access intel 12603 | -6/Zion | Turned away by Imprinter 12623 | -6/Zion | Received a visual enhancement algorithm 12654 | -6/Zion | Given the Hacking Drone Bay 12656 | -6/Zion | Found Prototype Device 12656 | -6/Zion | Identified Hacking Drone Bay 12681 | -6/Zion | Entered Proximity Caves 12718 | -5/Proximity Caves | Learned 8 Factory zone layouts 12718 | -5/Proximity Caves | Learned 4 Factory zone layouts 12729 | -5/Proximity Caves | Learned Factory garrison access intel 12820 | -5/Proximity Caves | Discovered new exit (range 23) 12829 | -5/Proximity Caves | Spotted B-75 Beast 12832 | -5/Proximity Caves | Entered Factory 12832 | -5/Factory | Evolved 2 slots: Power x1, Propulsion x1 12833 | -5/Factory | Identified exit to Factory 12833 | -5/Factory | Identified exit to Upper Caves 12834 | -5/Factory | Loaded intel: 4 garrison access locations 12979 | -5/Factory | Discovered exit to Factory (range 6) 13116 | -5/Factory | Identified exit to Extension 13121 | -5/Factory | Tech Extrapolator generated special schematic: Energy Deflector 13125 | -5/Factory | Loaded intel: 8 recycling unit locations 13132 | -5/Factory | Search patrols dispatched 13167 | -5/Factory | Entered Extension 13327 | -5/Extension | Attached CPS modules to HC-OVG(b). 13356 | -5/Extension | Rescued a captive Derelict 13358 | -5/Extension | Rescued a captive Derelict 13361 | -5/Extension | Rescued a captive Derelict 13363 | -5/Extension | Rescued a captive Derelict 13574 | -5/Extension | Tech Extrapolator generated special schematic: Heat Bomb Trap 13576 | -5/Extension | Lost 5 allies 13805 | -5/Extension | Rescued A7 13915 | -5/Extension | Spotted B-75 Beast 13917 | -5/Extension | Disrupted transfer network 13942 | -5/Extension | Core integrity fell below 50% 13950 | -5/Extension | Allies destroyed B-75 Beast 13975 | -5/Extension | Lost 4 parts (2p1n1u) 14020 | -5/Extension | Destroyed 7 combat bots 14033 | -5/Extension | Lost 3 parts (1p1n1u) 14066 | -5/Extension | Discovered new exit (range 15) 14067 | -5/Extension | First assault squad dispatched 14081 | -5/Extension | Destroyed 8 combat bots 14119 | -5/Extension | Rescued a captive Derelict 14146 | -5/Extension | Rescued a captive Derelict 14147 | -5/Extension | Rescued a captive Derelict 14350 | -5/Extension | Rescued a captive Derelict 14351 | -5/Extension | Rescued a captive Derelict 14432 | -5/Extension | Rescued a captive Derelict 14434 | -5/Extension | Rescued a captive Derelict 14463 | -5/Extension | Lost 6 allies 14492 | -5/Extension | Discovered exit to Factory (range 10) 14536 | -5/Extension | Entered Cetus 14536 | -5/Cetus | Accompanied by 10 allies (A7) 14541 | -5/Cetus | Acquired a Cetus Manufacturing Module code from A7 14569 | -5/Cetus | Spotted Cetus Guard 14569 | -5/Cetus | Spotted Cetus Guard 14573 | -5/Cetus | Spotted Cetus Guard 14603 | -5/Cetus | Allies destroyed Cetus Guard 14606 | -5/Cetus | Allies destroyed Cetus Guard 14630 | -5/Cetus | Lost 6 allies 14653 | -5/Cetus | Started Cetus Manufacturing Module 14671 | -5/Cetus | Discovered new exit (range 16) 14678 | -5/Cetus | Manufactured an Enhanced Grunt 14703 | -5/Cetus | Manufactured an Enhanced Grunt 14704 | -5/Cetus | Spotted Cetus Guard 14704 | -5/Cetus | Spotted Cetus Guard 14714 | -5/Cetus | Spotted Cetus Guard 14717 | -5/Cetus | Spotted Cetus Guard 14726 | -5/Cetus | Build established: Scavenger-Mutant 14728 | -5/Cetus | Manufactured an Enhanced Grunt 14753 | -5/Cetus | Manufactured an Enhanced Grunt 14776 | -5/Cetus | Allies destroyed Cetus Guard 14778 | -5/Cetus | Manufactured an Enhanced Grunt 14785 | -5/Cetus | Lost 6 allies 14811 | -5/Cetus | Lost 4 parts (1p2n1u) 14832 | -5/Cetus | Discovered exit to Factory (range 15) 14838 | -5/Cetus | Met Revision 17 14856 | -5/Cetus | Found Prototype Device 14856 | -5/Cetus | Identified Exp. Thermal Shield 14905 | -5/Cetus | Entered Archives 14905 | -5/Archives | Accompanied by 2 allies 14953 | -5/Archives | Discovered new exit (range 16) 15011 | -5/Archives | Discovered new exit (range 18) 15196 | -5/Archives | Discovered exit to Factory (range 18) 15221 | -5/Archives | Entered Hub_04(d) 15221 | -5/Hub_04(d) | Accompanied by 2 allies 15221 | -5/Hub_04(d) | Discovered exit to Factory (range 10) 15461 | -5/Hub_04(d) | Discovered exit to Factory (range 13) 15502 | -5/Hub_04(d) | Network Hub disabled 15727 | -5/Hub_04(d) | Network Hub disabled 15738 | -5/Hub_04(d) | Lost 5 parts (1p1n2u1w) 15777 | -5/Hub_04(d) | Spotted Lightning 15779 | -5/Hub_04(d) | Spotted Lightning 15785 | -5/Hub_04(d) | Spotted Lightning 15788 | -5/Hub_04(d) | Entered Factory 15788 | -4/Factory | Evolved 2 slots: Utility x2 15789 | -4/Factory | Identified exit to Armory 15790 | -4/Factory | Loaded intel: 4 garrison access locations 15984 | -4/Factory | Lost 7 parts (1p4n2u) 16039 | -4/Factory | Crushed by falling debris 16039 | -4/Factory | System corruption reached 10% 16070 | -4/Factory | Lost 4 parts (4u) 16133 | -4/Factory | Core integrity fell below 50% 16281 | -4/Factory | Manually triggered Chute Trap 16281 | -4/Factory | Sucked down chute 16281 | -4/Factory | Entered Waste 16287 | -4/Waste | Spotted C-40 Crusher 16291 | -4/Waste | Spotted C-40 Crusher 16291 | -4/Waste | Spotted C-40 Crusher 16296 | -4/Waste | Lost 3 parts (1n2u) 16301 | -4/Waste | Spotted C-40 Crusher 16303 | -4/Waste | Spotted C-40 Crusher 16303 | -4/Waste | Discovered new exit (range 16) 16303 | -4/Waste | Spotted C-40 Crusher 16306 | -4/Waste | Found Prototype Device 16306 | -4/Waste | Identified Exp. Shock Absorption System 16312 | -4/Waste | Identified exit to Factory 16312 | -4/Waste | Entered Factory 16406 | -4/Factory | Discovered new exit (range 8) 16438 | -4/Factory | Identified exit to Upper Caves 16448 | -4/Factory | Discovered new exit (range 9) 16532 | -4/Factory | Entered Research 16532 | -3/Research | Evolved 2 slots: Utility x2 16533 | -3/Research | Identified exit to Research 16533 | -3/Research | Identified exit to Testing 16534 | -3/Research | Loaded intel: 83 non-interactive machine locations 16535 | -3/Research | Build established: Hacker-Mutant 16601 | -3/Research | Fabricated Imp. Utility Shielding (x2) 16732 | -3/Research | Revision forces began assault on 0b10 16919 | -3/Research | System corruption reached 10% 16943 | -3/Research | Lost 4 parts (1p2n1u) 16969 | -3/Research | Destroyed 8 combat bots 16972 | -3/Research | Met up with Revision 17++ 17039 | -3/Research | Loaded intel: 5 recycling unit locations 17056 | -3/Research | Entered Testing 17065 | -3/Testing | Found Prototype Device 17065 | -3/Testing | Identified AEGIS Remote Shield 17150 | -3/Testing | Found Prototype Launcher 17150 | -3/Testing | Identified Hellfire Missile Launcher 17189 | -3/Testing | Fabricated Nanoactuators (x2) 17216 | -3/Testing | Found Prototype Energy Cannon 17216 | -3/Testing | Identified Null Cannon 17239 | -3/Testing | Build established: Scavenger-Sprinter 17353 | -3/Testing | Discovered exit to Research (range 11) 17377 | -3/Testing | Entered Research 17377 | -2/Research | Evolved 2 slots: Propulsion x2 17433 | -2/Research | Lost 3 parts (1p2n) 17455 | -2/Research | Spotted B-90 Cyclops 17465 | -2/Research | Scraphulk reinforcements arrived? 17495 | -2/Research | Core integrity fell below 50% 17500 | -2/Research | Core integrity fell below 20% 17506 | -2/Research | Destroyed by H-88 Terminator with KE Penetrator Last Messages --------------- 17496_ Slug penetrates Wall. 17496_ Imp. Armor Integrity Analyzer destroyed. 17496_ Penetrated by Slug. 17496_ Acquired Biometal Medium Treads. 17497_ Slug penetrates H-88 Terminator. 17498_ R-10 Processor collects Ovr. Antimatter Reactor. 17498_ Slug penetrates B-90 Cyclops. 17499_ Penetrated by Slug. 17499_ Acquired Biometal Medium Treads. 17499_ Penetrated by Slug. 17499_ Slug penetrates B-90 Cyclops. 17500_ Dropped Imp. Weapon Shielding. 17501_ Penetrated by Slug. 17503_ Slug penetrates Wall. 17505_ Penetrated by Slug. 17505_ Biometal Medium Treads destroyed. 17505_ Slug penetrates H-88 Terminator. 17505_ Penetrated by Slug. 17505_ Slug penetrates H-88 Terminator. 17505_ Penetrated by Slug. Map ----- +----------------------------------------------------+ | ?????????????????????????????????????????????????? | | ?????????????????????????????????????????????????? | | ?????????????????????????????????????????????????? | | ?????????????????????????????????????????????????? | | ?????????????????????????????????????????????????? | | ?????????????????????????????????????????????????? | | ?????????????????????????????????????????????????? | | ??????????###????????????????????????????????????? | | ?????######"#############????????????????????????? | | ?????# ] # #????????????????????????? | | #????# # ! #????????????????????????? | | #????# # " """ #????????????????????????? | | #????# # "" """ #????????????????????????? | | #????# # G!! """ ?????????????????????????? | | ###### + " #??????????########+###### | | # # # "! #??????????# | | + # # % """ #??????????# | | # # # """ #??????????# ? | | # + # ] """ #??????????+ !* ?? | | # # # #??????????# ! #??? | | # # # ????????????# #??? | | # ######;;####;;;################ #### | | # h | | # h!% R = | | # ^ hh | | # | == h hh @ | | ########!! ! ##########+########## T# | | ???????# == R #?????# #???#### | | ???????# ^ #?????# #??????? | | ???????# #?????# "" #??????? | | ???????# ####### " "#??????? | | ?????? " S ######## | | ?????# ####### " | | ?????######"### ####+###?????# !! ######## | | ????????? ??# #????????????# !! #??????? | | ???????? ??# #????????????### #+###"######## | | ??????? ???# #??????????????### #?## | | ??????? = ???# #????????????????# #??# | | ??????? ???# ##############???# #??# """ | | ??????#####???# # #???# #??# """ | | ?????? ??# # ##### #??# """ | | ??????? ! ??# # + #??# | | ??????? ?# # """ """ #######??# | | ??????? """ ?# # """ """ #????????# | | ??????? """" # # """ """ #????????######### | | ?????# """" # + """ """ #????????????????? | | ?????# """ + # """ """ #????????????????? | | ?????# # # """ """ #????????????????? | | ?????# # # """ """ #????????????????? | | ?????########## # ##???????????????? | +----------------------------------------------------+ Best States ------------- Heat Dissipation 49 Coolant Potential 100 Energy Generation 35 Energy Capacity 540 Matter Stores 300 Matter Capacity 300 Sight Range 23 Robot Scan Range 16 Terrain Scan Density 10 Jamming Range 16 Cloak Strength 2 Additional Mass Support 9 Corruption Containment 12 Corruption Block 11 Armor Coverage 800 Resistance: TH 30 Propulsion Shielding 66 Utility Shielding 66 Weapon Shielding 66 Melee Speed Boost 50 Evasion (%) 75 Melee Accuracy 12 Armor Integrity Analysis 40 Recoil Reduction 2 Offensive Hacking 24 Defensive Hacking 12 Authchip Count 2 Trap Extractor Capacity 6 Item Schematics ----------------- Imp. Propulsion Shielding | -8/Recycling | Hacked Imp. Utility Shielding | -8/Recycling | Hacked Adv. Visual Processing Unit | -8/Recycling | Hacked Lgt. Humpback | -6/Factory | Extrapolated Deep Structural Scanner | -6/Factory | Extrapolated Mak. Light Armor Plating | -6/Factory | Extrapolated Mak. Medium Armor Plating | -6/Factory | Extrapolated Mak. Coolant Network | -6/Factory | Extrapolated Mak. Targeting Computer | -6/Factory | Extrapolated Mak. Core Shielding | -6/Factory | Extrapolated Mak. Power Source | -6/Waste | Extrapolated Mak. Flight Unit | -6/Waste | Extrapolated Mak. Kinetic Plating | -6/Factory | Extrapolated Mak. Terrain Scanner | -6/Factory | Extrapolated Mak. Thermal Plating | -6/Factory | Extrapolated Mak. Ablative Armor | -6/Factory | Extrapolated Machine Rigger | -6/Factory | Extrapolated Mak. Laser | -6/Factory | Extrapolated 0b10 Decoder Chip [Generic] | -6/Factory | Extrapolated 0b10 Decoder Chip [Scout] | -6/Factory | Extrapolated 0b10 Decoder Chip [Skirmisher] | -6/Factory | Extrapolated Imp. Armor Integrity Analyzer | -6/Factory | Hacked Humpback | -6/Factory | Extrapolated Mak. System Shield | -6/Lower Caves | Extrapolated Beamcaster | -6/Lower Caves | Extrapolated Hvy. Beamcaster | -6/Lower Caves | Extrapolated Spk. Treads | -6/Zion | Extrapolated Spk. Medium Treads | -6/Zion | Extrapolated Spk. Heavy Treads | -6/Zion | Extrapolated Arc Thrower | -5/Proximity Caves | Extrapolated Mak. Hover Unit | -5/Factory | Extrapolated Mak. Heavy Armor Plating | -5/Factory | Extrapolated Mak. Salvage Targeting Computer | -5/Factory | Extrapolated Hvy. Battle Rifle | -5/Factory | Extrapolated Tesla Rifle | -5/Factory | Extracted Energy Deflector | -5/Factory | Extrapolated Bore Cannon | -5/Extension | Extrapolated Multitool | -5/Extension | Extrapolated Enh. Flamer | -5/Extension | Extrapolated Mak. Propulsion Shielding | -5/Extension | Extrapolated Plasma Flamer | -5/Extension | Extrapolated Heat Bomb Trap | -5/Extension | Extrapolated Mak. Weapon Shielding | -5/Extension | Extrapolated Mak. Hacking Suite | -5/Extension | Extrapolated Mak. Sensor Array | -5/Cetus | Extrapolated Mak. System Restoration Module | -5/Archives | Extrapolated Mapping Drone Bay | -5/Hub_04(d) | Extrapolated Adv. Powered Armor | -4/Factory | Hacked Nanoactuators | -3/Research | Hacked Exp. Transmission Jammer | -3/Testing | Hacked Robot Schematics ------------------ None Fabricated ------------ Imp. Propulsion Shielding | x2 | -6/Factory Deep Structural Scanner | x1 | -6/Factory | Authchip Machine Rigger | x1 | -6/Factory | Authchip Imp. Utility Shielding | x2 | -6/Factory | Authchip Imp. Utility Shielding | x2 | -3/Research Nanoactuators | x2 | -3/Testing | Authchip Repaired ---------- Nothing Studied --------- Cesium-ion Thruster | -6/Factory | Hacked Lgt. Nuclear Core | -5/Factory | Hacked Alien Tech Used ----------------- None Achievements -------------- Barbarian Betrayal Most Foul Hulk Smash Loot Taster Network Effect Survival Of The Most Covered Suspicious Uncivil War Challenges ------------ None Game ------ Seed MicroElectrostormUnit Manual? 0 Play Time 02:37:18 Cumulative 819.5 hours Start 2025.10.29 @ 15:04:14 End 2025.10.29 @ 21:08:58 Sessions 11 Manual Loads 0 Difficulty Rogue Special Mode None Game No. 819 Rogue 819 Adventurer 0 Explorer 0 Win Type - Total 39 Types 14/4/11/2/0/0/5/2/1/0 Lore% 96 Gallery% 86 Achievement% 58 Wizard Run 0 Options --------- Layout 0 ASCII 0 Keyboard 0 Movement Numpad Keybinds 0 Fullscreen 1 Font 18/Smallcaps Map View 76x50 Zoom Use 0% Tactical HUD 1 Map Filters NONE Filters NONE Steam 1 RUN: 3cb745fd-44b7-4b8e-9f50-6df141f9bc73